fUST/lending_fUST_20250606
["ID","MTS","AMOUNT","RATE_DAILY","PERIOD"]
[364693106,1749209234385,-500.0,0.00018832,2]
[364693107,1749209234408,-500.0,0.00018832,2]
[364693108,1749209234434,-500.0,0.00018832,2]
[364693109,1749209234459,-478.38611926,0.00018832,2]
[364693110,1749209234481,-500.0,0.00018832,2]
[364693111,1749209234504,-500.0,0.00018832,2]
[364693112,1749209234526,-500.0,0.00018832,2]
[364693113,1749209234548,-500.0,0.00018832,2]
[364693114,1749209234571,-500.0,0.00018832,2]
[364693115,1749209234592,-300.0,0.00018832,2]
[364693116,1749209234613,-5145.07613874,0.00018833,2]
[364693117,1749209241097,-900.19898944,0.00018833,2]
[364693118,1749209243086,-1210.9829792,0.00018833,2]
[364693119,1749209244123,-594.30990575,0.00018833,2]
[364693121,1749209250072,-564.4054492,0.00018833,2]
[364693171,1749209305987,2070.25982615,0.000176,2]
[364693172,1749209310805,280.63372872,0.0001,2]
[364693173,1749209316295,2200.94973722,0.00017,2]
[364693174,1749209316318,25521.163,0.00017,2]
[364693175,1749209316340,4733.52542919,0.00017,2]
[364693176,1749209317664,-225.07,0.00018003,2]
[364693178,1749209322672,301.999999,0.0002,120]
[364693179,1749209324191,2062.18233183,0.00015,2]
[364693180,1749209325004,806.74063401,0.00014,30]
[364693181,1749209326500,18725.45523898,0.0001,2]
[364693182,1749209326530,4386.11757918,0.0001,2]
[364693185,1749209346108,-531.4967644,0.00018053,2]
[364693186,1749209362086,-300.0,0.00018832,2]
[364693187,1749209362109,-18973.33327547,0.00018833,2]
[364693188,1749209362130,-450.14,0.0001886,2]
[364693189,1749209362151,-497.5984577,0.00018899,2]
[364693190,1749209362172,-500.0,0.00018899,2]
[364693191,1749209362195,-500.0,0.00018899,2]
[364693192,1749209362216,-500.0,0.00018899,2]
[364693193,1749209362237,-264.07918391,0.00018899,2]
[364693194,1749209362257,-465.84542969,0.00018899,2]
[364693195,1749209362278,-972.46194228,0.000189,2]
[364693196,1749209362299,-6837.90726942,0.00019,2]
[364693197,1749209362319,-1098.63444153,0.00019166,2]
[364693198,1749209372145,-1003.78715873,0.00019166,2]
[364693199,1749209372166,-500.0,0.00019177,2]
[364693200,1749209372187,-500.0,0.00019177,2]
[364693201,1749209372207,-500.0,0.00019177,2]
[364693202,1749209372227,-500.0,0.00019177,2]
[364693203,1749209372251,-389.14745584,0.00019177,2]
[364693204,1749209372283,-430.0,0.00019178,2]
[364693205,1749209372303,-440.0,0.00019178,2]
[364693206,1749209372323,-440.0,0.00019178,2]
[364693207,1749209372343,-440.0,0.00019178,2]
[364693208,1749209372366,-440.0,0.00019178,2]
[364693209,1749209372392,-440.0,0.00019178,2]
[364693210,1749209372571,-440.0,0.00019178,2]
[364693211,1749209372594,-440.0,0.00019178,2]
[364693212,1749209372615,-440.0,0.00019178,2]
[364693213,1749209372635,-338.79835006,0.00019178,2]
[364693214,1749209372655,-440.0,0.00019178,2]
[364693215,1749209372675,-440.0,0.00019178,2]
[364693216,1749209372696,-420.0,0.00019178,2]
[364693217,1749209372716,-440.0,0.00019178,2]
[364693218,1749209372736,-440.0,0.00019178,2]
[364693219,1749209372757,-440.0,0.00019178,2]
[364693220,1749209372777,-440.0,0.00019178,2]
[364693221,1749209372798,-440.0,0.00019178,2]
[364693222,1749209372819,-440.0,0.00019178,2]
[364693223,1749209372839,-288.37464327,0.00019178,2]
[364693224,1749209372859,-440.0,0.00019178,2]
[364693225,1749209372884,-422.72885539,0.00019178,2]
[364693226,1749209372904,-440.0,0.00019178,2]
[364693227,1749209372925,-440.0,0.00019178,2]
[364693228,1749209372946,-440.0,0.00019178,2]
[364693229,1749209372974,-441.81794322,0.00019178,2]
[364693230,1749209372996,-400.0,0.00019178,2]
[364693231,1749209373020,-440.0,0.00019178,2]
[364693232,1749209373040,-440.0,0.00019178,2]
[364693233,1749209373061,-440.0,0.00019178,2]
[364693234,1749209373083,-400.0,0.00019178,2]
[364693235,1749209373104,-440.0,0.00019178,2]
[364693236,1749209373129,-440.0,0.00019178,2]
[364693237,1749209373151,-440.0,0.00019178,2]
[364693238,1749209373171,-430.0,0.00019178,2]
[364693239,1749209373191,-440.0,0.00019178,2]
[364693240,1749209373212,-500.0,0.00019178,2]
[364693241,1749209373235,-631.91,0.00019178,2]
[364693242,1749209373257,-500.35047738,0.00019178,2]
[364693243,1749209373278,-442.90901683,0.00019178,2]
[364693244,1749209373302,-650.05,0.00019178,2]
[364693245,1749209373326,-440.0,0.00019178,2]
[364693246,1749209373348,-440.11930814,0.00019178,2]
[364693247,1749209373372,-440.0,0.00019178,2]
[364693248,1749209373391,-440.0,0.00019178,2]
[364693249,1749209373411,-440.0,0.00019178,2]
[364693250,1749209373432,-440.0,0.00019178,2]
[364693251,1749209373454,-338.51314734,0.00019178,2]
[364693252,1749209373478,-440.5729721,0.00019178,2]
[364693253,1749209373500,-897.61,0.00019178,2]
[364693254,1749209373522,-232.95872495,0.00019178,2]
[364693255,1749209373544,-440.0,0.00019178,2]
[364693256,1749209373568,-440.0,0.00019178,2]
[364693257,1749209373589,-440.0,0.00019178,2]
[364693258,1749209373614,-401.32539426,0.00019178,2]
[364693259,1749209373636,-440.0,0.00019178,2]
[364693260,1749209373657,-440.0,0.00019178,2]
[364693261,1749209373679,-440.0,0.00019178,2]
[364693262,1749209373701,-440.0,0.00019178,2]
[364693263,1749209373723,-440.0,0.00019178,2]
[364693264,1749209373745,-495.39,0.00019178,2]
[364693265,1749209373767,-440.0,0.00019178,2]
[364693266,1749209373793,-843.54,0.00019178,2]
[364693267,1749209373816,-440.0,0.00019178,2]
[364693268,1749209373837,-440.0,0.00019178,2]
[364693269,1749209373859,-551.08243875,0.00019178,2]
[364693270,1749209373883,-430.0,0.00019178,2]
[364693271,1749209373904,-284.56145394,0.00019178,2]
[364693272,1749209373927,-430.0,0.00019178,2]
[364693273,1749209373948,-430.0,0.00019178,2]
[364693274,1749209373971,-440.0,0.00019178,2]
[364693275,1749209373993,-440.0,0.00019178,2]
[364693276,1749209374014,-430.0,0.00019178,2]
[364693277,1749209374036,-2435.58,0.00019178,2]
[364693278,1749209374057,-442.40520821,0.00019178,2]
[364693279,1749209374080,-440.0,0.00019178,2]
[364693280,1749209374102,-1057.85,0.00019178,2]
[364693281,1749209374125,-1087.76,0.00019178,2]
[364693282,1749209374147,-500.0,0.00019178,2]
[364693283,1749209374168,-440.0,0.00019178,2]
[364693284,1749209374190,-440.0,0.00019178,2]
[364693285,1749209374212,-440.0,0.00019178,2]
[364693286,1749209374234,-430.0,0.00019178,2]
[364693287,1749209374256,-440.0,0.00019178,2]
[364693288,1749209374278,-440.0,0.00019178,2]
[364693289,1749209374299,-440.0,0.00019178,2]
[364693290,1749209374319,-158.39558315,0.00019178,2]
[364693291,1749209374340,-440.0,0.00019178,2]
[364693292,1749209374362,-440.0,0.00019178,2]
[364693293,1749209374384,-440.0,0.00019178,2]
[364693294,1749209374407,-440.0,0.00019178,2]
[364693295,1749209374428,-440.0,0.00019178,2]
[364693296,1749209374451,-440.0,0.00019178,2]
[364693297,1749209374473,-440.0,0.00019178,2]
[364693298,1749209374496,-440.0,0.00019178,2]
[364693299,1749209374520,-440.0,0.00019178,2]
[364693300,1749209374541,-555.0,0.00019178,2]
[364693301,1749209374564,-430.0,0.00019178,2]
[364693302,1749209374585,-440.0,0.00019178,2]
[364693303,1749209374607,-430.94861114,0.00019178,2]
[364693304,1749209374629,-440.0,0.00019178,2]
[364693305,1749209374653,-440.0,0.00019178,2]
[364693306,1749209374674,-440.0,0.00019178,2]
[364693307,1749209374696,-255.83,0.00019178,2]
[364693308,1749209374717,-440.0,0.00019178,2]
[364693309,1749209374737,-440.9773787,0.00019178,2]
[364693310,1749209374759,-440.0,0.00019178,2]
[364693311,1749209374781,-440.0,0.00019178,2]
[364693312,1749209374804,-523.69,0.00019178,2]
[364693313,1749209374827,-2472.45,0.00019178,2]
[364693314,1749209374849,-500.54,0.00019178,2]
[364693315,1749209374870,-440.0,0.00019178,2]
[364693316,1749209374898,-3735.25,0.00019178,2]
[364693317,1749209374919,-430.0,0.00019178,2]
[364693318,1749209374942,-440.0,0.00019178,2]
[364693319,1749209374966,-574.2,0.00019178,2]
[364693320,1749209374988,-959.65,0.00019178,2]
[364693321,1749209375010,-440.0,0.00019178,2]
[364693322,1749209375032,-440.0,0.00019178,2]
[364693323,1749209375055,-430.46665608,0.00019178,2]
[364693324,1749209375078,-3681.51215726,0.00019178,2]
[364693325,1749209375143,187.60280735,0.00018008,2]
[364693326,1749209375215,-28.87719265,0.00018008,2]
[364693343,1749209421238,172.43130802,0.00018603,2]
[364693381,1749209432644,-39.85990272,0.00018603,2]
[364693383,1749209432653,-94.69376163,0.00018865,2]
[364693457,1749209438358,-338.26623837,0.00018865,2]
[364693459,1749209438368,-393.70126596,0.00019078,2]
[364693461,1749209438377,-300.0,0.00019177,2]
[364693476,1749209438552,-430.0,0.00019178,2]
[364693478,1749209438563,-440.0,0.00019178,2]
[364693480,1749209438573,-440.0,0.00019178,2]
[364693482,1749209438582,-665.2,0.00019178,2]
[364693483,1749209438591,-440.0,0.00019178,2]
[364693485,1749209438600,-281.16035101,0.00019178,2]
[364693487,1749209438610,-440.0,0.00019178,2]
[364693489,1749209438620,-4313.02,0.00019178,2]
[364693491,1749209438630,-440.0,0.00019178,2]
[364693492,1749209438639,-440.0,0.00019178,2]
[364693494,1749209438649,-440.0,0.00019178,2]
[364693496,1749209438658,-440.0,0.00019178,2]
[364693498,1749209438667,-500.0,0.00019178,2]
[364693499,1749209438677,-500.0,0.00019178,2]
[364693501,1749209438687,-2108.9,0.00019178,2]
[364693503,1749209438696,-440.0,0.00019178,2]
[364693505,1749209438707,-519.06,0.00019178,2]
[364693507,1749209438717,-440.0,0.00019178,2]
[364693509,1749209438726,-500.0,0.00019178,2]
[364693510,1749209438735,-881.75,0.00019178,2]
[364693512,1749209438744,-2738.0,0.00019178,2]
[364693514,1749209438754,-500.0,0.00019178,2]
[364693516,1749209438763,-430.0,0.00019178,2]
[364693518,1749209438773,-440.0,0.00019178,2]
[364693519,1749209438782,-400.0,0.00019178,2]
[364693521,1749209438792,-430.0,0.00019178,2]
[364693523,1749209438801,-430.0,0.00019178,2]
[364693525,1749209438810,-422.0,0.00019178,2]
[364693526,1749209438819,-380.0,0.00019178,2]
[364693528,1749209438829,-416.93707642,0.00019178,2]
[364693530,1749209438838,-214.07483374,0.00019178,2]
[364693532,1749209438848,-440.0,0.00019178,2]
[364693533,1749209438858,-400.0,0.00019178,2]
[364693535,1749209438867,-443.96137393,0.00019178,2]
[364693537,1749209438878,-4172.47,0.00019178,2]
[364693539,1749209438887,-1703.47,0.00019178,2]
[364693540,1749209438896,-440.0,0.00019178,2]
[364693542,1749209438907,-440.0,0.00019178,2]
[364693544,1749209438916,-440.0,0.00019178,2]
[364693546,1749209438926,-440.0,0.00019178,2]
[364693548,1749209438935,-440.0,0.00019178,2]
[364693549,1749209438947,-440.0,0.00019178,2]
[364693551,1749209438956,-440.0,0.00019178,2]
[364693553,1749209438965,-440.0,0.00019178,2]
[364693555,1749209438975,-348.90531776,0.00019178,2]
[364693556,1749209438987,-2159.64,0.00019178,2]
[364693558,1749209438998,-1221.5,0.00019178,2]
[364693560,1749209439007,-430.0,0.00019178,2]
[364693562,1749209439016,-440.0,0.00019178,2]
[364693564,1749209439026,-440.0,0.00019178,2]
[364693565,1749209439037,-440.0,0.00019178,2]
[364693567,1749209439046,-156.73599795,0.00019178,2]
[364693569,1749209439055,-158.5740737,0.00019178,2]
[364693571,1749209439065,-440.0,0.00019178,2]
[364693572,1749209439074,-356.20223324,0.00019178,2]
[364693574,1749209439084,-805.61,0.00019178,2]
[364693576,1749209439094,-430.0,0.00019178,2]
[364693578,1749209439103,-721.53,0.00019178,2]
[364693579,1749209439113,-440.0,0.00019178,2]
[364693581,1749209439122,-440.0,0.00019178,2]
[364693583,1749209439133,-430.0,0.00019178,2]
[364693585,1749209439143,-440.0,0.00019178,2]
[364693587,1749209439153,-440.0,0.00019178,2]
[364693589,1749209439163,-440.0,0.00019178,2]
[364693590,1749209439173,-701.69,0.00019178,2]
[364693592,1749209439182,-237.22059606,0.00019178,2]
[364693594,1749209439192,-440.0,0.00019178,2]
[364693596,1749209439202,-440.0,0.00019178,2]
[364693598,1749209439212,-6392.51,0.00019178,2]
[364693600,1749209439221,-440.0,0.00019178,2]
[364693601,1749209439231,-510.73,0.00019178,2]
[364693603,1749209439240,-440.0,0.00019178,2]
[364693605,1749209439251,-1743.33,0.00019178,2]
[364693607,1749209439260,-440.0,0.00019178,2]
[364693609,1749209439269,-430.0,0.00019178,2]
[364693610,1749209439278,-440.0,0.00019178,2]
[364693612,1749209439288,-440.0,0.00019178,2]
[364693614,1749209439297,-500.0,0.00019178,2]
[364693616,1749209439307,-440.0,0.00019178,2]
[364693618,1749209439316,-528.75,0.00019178,2]
[364693619,1749209439326,-864.09,0.00019178,2]
[364693621,1749209439337,-440.0,0.00019178,2]
[364693623,1749209439350,-440.0,0.00019178,2]
[364693625,1749209439362,-340.03043852,0.00019178,2]
[364693627,1749209439372,-1481.54,0.00019178,2]
[364693629,1749209439386,-1658.79,0.00019178,2]
[364693630,1749209439403,-440.0,0.00019178,2]
[364693632,1749209439414,-585.18,0.00019178,2]
[364693634,1749209439424,-440.0,0.00019178,2]
[364693636,1749209439433,-440.0,0.00019178,2]
[364693638,1749209439442,-440.0,0.00019178,2]
[364693639,1749209439452,-440.0,0.00019178,2]
[364693641,1749209439461,-491.72568382,0.00019178,2]
[364693643,1749209439471,-440.0,0.00019178,2]
[364693645,1749209439480,-440.0,0.00019178,2]
[364693646,1749209439490,-401.85675123,0.00019178,2]
[364693648,1749209439500,-1386.8,0.00019178,2]
[364693650,1749209439510,-535.95206501,0.00019178,2]
[364693652,1749209439519,-440.0,0.00019178,2]
[364693654,1749209439529,-440.0,0.00019178,2]
[364693656,1749209439539,-430.0,0.00019178,2]
[364693657,1749209439549,-440.0,0.00019178,2]
[364693659,1749209439558,-440.0,0.00019178,2]
[364693661,1749209439568,-440.0,0.00019178,2]
[364693663,1749209439577,-380.0,0.00019178,2]
[364693664,1749209439587,-397.94085852,0.00019178,2]
[364693666,1749209439596,-2639.83,0.00019178,2]
[364693668,1749209439606,-420.0,0.00019178,2]
[364693670,1749209439616,-538.58,0.00019178,2]
[364693672,1749209439626,-440.0,0.00019178,2]
[364693673,1749209439635,-440.0,0.00019178,2]
[364693675,1749209439645,-440.0,0.00019178,2]
[364693677,1749209439654,-440.0,0.00019178,2]
[364693679,1749209439664,-365.03691886,0.00019178,2]
[364693681,1749209439673,-440.0,0.00019178,2]
[364693682,1749209439682,-436.7071302,0.00019178,2]
[364693684,1749209439692,-440.0,0.00019178,2]
[364693686,1749209439702,-440.0,0.00019178,2]
[364693688,1749209439713,-440.0,0.00019178,2]
[364693690,1749209439723,-440.0,0.00019178,2]
[364693691,1749209439732,-440.0,0.00019178,2]
[364693693,1749209439742,-440.0,0.00019178,2]
[364693695,1749209439751,-4011.19,0.00019178,2]
[364693697,1749209439761,-440.0,0.00019178,2]
[364693699,1749209439770,-440.0,0.00019178,2]
[364693700,1749209439779,-474.6,0.00019178,2]
[364693702,1749209439789,-206.1123662,0.00019178,2]
[364693704,1749209439798,-440.0,0.00019178,2]
[364693706,1749209439807,-440.0,0.00019178,2]
[364693708,1749209439817,-440.0,0.00019178,2]
[364693709,1749209439826,-440.0,0.00019178,2]
[364693711,1749209439836,-440.0,0.00019178,2]
[364693713,1749209439846,-5314.89,0.00019178,2]
[364693715,1749209439858,-598.89,0.00019178,2]
[364693717,1749209439867,-4156.84,0.00019178,2]
[364693718,1749209439876,-424.77963585,0.00019178,2]
[364693721,1749209439891,-15.22036415,0.00019178,2]
[364693723,1749209439901,-386.17748023,0.00019178,2]
[364693724,1749209439915,-430.0,0.00019178,2]
[364693726,1749209439924,-410.71505488,0.00019178,2]
[364693728,1749209439936,-89.28494512,0.00019178,2]
[364693730,1749209439945,-467.99,0.00019178,2]
[364693732,1749209439956,-576.78093671,0.00019178,2]
[364693734,1749209439966,-440.0,0.00019178,2]
[364693735,1749209439975,-752.29,0.00019178,2]
[364693737,1749209439986,-495.94600658,0.00019178,2]
[364693739,1749209439999,-46.16666255,0.00019178,2]
[364693742,1749209440009,-440.0,0.00019178,2]
[364693745,1749209440018,-323.22816456,0.00019178,2]
[364693747,1749209440027,-190.60517289,0.00019178,2]
[364693782,1749209440927,-189.39482711,0.00019178,2]
[364693783,1749209440936,-440.0,0.00019178,2]
[364693784,1749209440946,-440.0,0.00019178,2]
[364693785,1749209440955,-519.59724508,0.00019178,2]
[364693786,1749209440964,-700.45,0.00019178,2]
[364693787,1749209440972,-186.918596,0.00019178,2]
[364693788,1749209440981,-500.0,0.00019451,2]
[364693789,1749209440991,-172.40321909,0.00019451,2]
[364693790,1749209441000,-500.0,0.00019451,2]
[364693791,1749209441009,-500.0,0.00019451,2]
[364693792,1749209441018,-380.0,0.00019452,2]
[364693793,1749209441028,-560.04018772,0.00019452,2]
[364693794,1749209441037,-522.23186647,0.00019452,2]
[364693795,1749209441046,-440.0,0.00019452,2]
[364693796,1749209441055,-554.84762379,0.00019452,2]
[364693797,1749209441064,-440.0,0.00019452,2]
[364693798,1749209441074,-440.0,0.00019452,2]
[364693799,1749209441083,-440.0,0.00019452,2]
[364693800,1749209441092,-360.0,0.00019452,2]
[364693801,1749209441101,-440.0,0.00019452,2]
[364693802,1749209441110,-650.05,0.00019452,2]
[364693803,1749209441119,-440.0,0.00019452,2]
[364693804,1749209441128,-440.0,0.00019452,2]
[364693805,1749209441137,-897.61,0.00019452,2]
[364693806,1749209441146,-440.0,0.00019452,2]
[364693807,1749209441155,-440.0,0.00019452,2]
[364693808,1749209441163,-440.0,0.00019452,2]
[364693809,1749209441173,-440.0,0.00019452,2]
[364693810,1749209441181,-438.7287796,0.00019452,2]
[364693811,1749209441190,-440.0,0.00019452,2]
[364693812,1749209441199,-440.0,0.00019452,2]
[364693813,1749209441208,-440.0,0.00019452,2]
[364693814,1749209441217,-495.39,0.00019452,2]
[364693815,1749209441226,-440.0,0.00019452,2]
[364693816,1749209441235,-843.54,0.00019452,2]
[364693817,1749209441244,-440.0,0.00019452,2]
[364693818,1749209441254,-440.0,0.00019452,2]
[364693819,1749209441263,-440.0,0.00019452,2]
[364693820,1749209441272,-265.0,0.00019452,2]
[364693821,1749209441281,-2435.58,0.00019452,2]
[364693822,1749209441291,-440.0,0.00019452,2]
[364693823,1749209441299,-1057.85,0.00019452,2]
[364693824,1749209441308,-1087.76,0.00019452,2]
[364693825,1749209441317,-440.0,0.00019452,2]
[364693826,1749209441326,-440.0,0.00019452,2]
[364693828,1749209441336,-522.63540472,0.00019452,2]
[364693829,1749209441345,-440.0,0.00019452,2]
[364693831,1749209441354,-274.86729303,0.00019452,2]
[364693832,1749209441364,-440.0,0.00019452,2]
[364693833,1749209441373,-440.0,0.00019452,2]
[364693834,1749209441383,-440.0,0.00019452,2]
[364693836,1749209441393,-430.0,0.00019452,2]
[364693837,1749209441403,-440.0,0.00019452,2]
[364693839,1749209441412,-440.0,0.00019452,2]
[364693841,1749209441421,-405.59752518,0.00019452,2]
[364693843,1749209441431,-440.0,0.00019452,2]
[364693844,1749209441440,-250.93154517,0.00019452,2]
[364693845,1749209441450,-440.0,0.00019452,2]
[364693847,1749209441459,-440.0,0.00019452,2]
[364693849,1749209441468,-440.0,0.00019452,2]
[364693851,1749209441478,-523.69,0.00019452,2]
[364693853,1749209441489,-440.0,0.00019452,2]
[364693854,1749209441498,-574.2,0.00019452,2]
[364693856,1749209441508,-959.65,0.00019452,2]
[364693857,1749209441517,-440.0,0.00019452,2]
[364693858,1749209441527,-440.0,0.00019452,2]
[364693859,1749209441536,-440.0,0.00019452,2]
[364693860,1749209441545,-161.10649308,0.00019452,2]
[364693861,1749209441555,-665.2,0.00019452,2]
[364693862,1749209441564,-440.0,0.00019452,2]
[364693863,1749209441574,-440.0,0.00019452,2]
[364693864,1749209441584,-4313.02,0.00019452,2]
[364693865,1749209441594,-440.0,0.00019452,2]
[364693866,1749209441605,-440.0,0.00019452,2]
[364693867,1749209441615,-440.0,0.00019452,2]
[364693868,1749209441624,-432.87749607,0.00019452,2]
[364693869,1749209441634,-2108.9,0.00019452,2]
[364693870,1749209441645,-440.0,0.00019452,2]
[364693871,1749209441654,-519.06,0.00019452,2]
[364693872,1749209441664,-440.0,0.00019452,2]
[364693873,1749209441675,-881.75,0.00019452,2]
[364693874,1749209441684,-2738.0,0.00019452,2]
[364693875,1749209441694,-440.0,0.00019452,2]
[364693876,1749209441704,-4172.47,0.00019452,2]
[364693877,1749209441714,-1703.47,0.00019452,2]
[364693878,1749209441724,-373.12817433,0.00019452,2]
[364693879,1749209441734,-440.0,0.00019452,2]
[364693880,1749209441743,-440.0,0.00019452,2]
[364693881,1749209441753,-440.0,0.00019452,2]
[364693882,1749209441763,-440.0,0.00019452,2]
[364693883,1749209441772,-440.0,0.00019452,2]
[364693884,1749209441782,-440.0,0.00019452,2]
[364693885,1749209441907,-430.0,0.00019452,2]
[364693886,1749209441920,-2159.64,0.00019452,2]
[364693887,1749209441929,-1221.5,0.00019452,2]
[364693888,1749209441939,-400.0,0.00019452,2]
[364693890,1749209441949,-440.0,0.00019452,2]
[364693892,1749209441958,-440.0,0.00019452,2]
[364693893,1749209441968,-440.0,0.00019452,2]
[364693894,1749209441977,-805.61,0.00019452,2]
[364693895,1749209441987,-721.53,0.00019452,2]
[364693896,1749209441996,-360.0,0.00019452,2]
[364693897,1749209442006,-440.0,0.00019452,2]
[364693898,1749209442015,-440.0,0.00019452,2]
[364693899,1749209442025,-440.0,0.00019452,2]
[364693900,1749209442034,-440.0,0.00019452,2]
[364693901,1749209442043,-701.69,0.00019452,2]
[364693902,1749209442053,-440.0,0.00019452,2]
[364693903,1749209442063,-440.0,0.00019452,2]
[364693904,1749209442073,-6392.51,0.00019452,2]
[364693905,1749209442083,-440.0,0.00019452,2]
[364693906,1749209442094,-510.73,0.00019452,2]
[364693907,1749209442105,-440.0,0.00019452,2]
[364693908,1749209442115,-1743.33,0.00019452,2]
[364693909,1749209442124,-440.0,0.00019452,2]
[364693910,1749209442133,-440.0,0.00019452,2]
[364693911,1749209442143,-440.0,0.00019452,2]
[364693912,1749209442152,-440.0,0.00019452,2]
[364693913,1749209442162,-528.75,0.00019452,2]
[364693914,1749209442172,-864.09,0.00019452,2]
[364693915,1749209442181,-440.0,0.00019452,2]
[364693916,1749209442191,-440.0,0.00019452,2]
[364693917,1749209442200,-1481.54,0.00019452,2]
[364693918,1749209442210,-1658.79,0.00019452,2]
[364693919,1749209442220,-440.0,0.00019452,2]
[364693920,1749209442229,-585.18,0.00019452,2]
[364693921,1749209442238,-440.0,0.00019452,2]
[364693922,1749209442248,-440.0,0.00019452,2]
[364693923,1749209442257,-440.0,0.00019452,2]
[364693924,1749209442268,-440.0,0.00019452,2]
[364693925,1749209442277,-408.860623,0.00019452,2]
[364693926,1749209442287,-440.0,0.00019452,2]
[364693927,1749209442296,-1386.8,0.00019452,2]
[364693928,1749209442305,-440.0,0.00019452,2]
[364693929,1749209442315,-440.0,0.00019452,2]
[364693930,1749209442325,-440.0,0.00019452,2]
[364693931,1749209442335,-440.0,0.00019452,2]
[364693932,1749209442345,-2639.83,0.00019452,2]
[364693933,1749209442355,-538.58,0.00019452,2]
[364693934,1749209442364,-440.0,0.00019452,2]
[364693935,1749209442374,-440.0,0.00019452,2]
[364693936,1749209442383,-440.0,0.00019452,2]
[364693937,1749209442392,-440.0,0.00019452,2]
[364693938,1749209442401,-440.0,0.00019452,2]
[364693939,1749209442411,-440.0,0.00019452,2]
[364693940,1749209442420,-440.0,0.00019452,2]
[364693941,1749209442429,-440.0,0.00019452,2]
[364693942,1749209442439,-440.0,0.00019452,2]
[364693943,1749209442448,-236.10640758,0.00019452,2]
[364693945,1749209442458,-4011.19,0.00019452,2]
[364693947,1749209442467,-440.0,0.00019452,2]
[364693949,1749209442476,-440.0,0.00019452,2]
[364693951,1749209442485,-474.6,0.00019452,2]
[364693953,1749209442495,-440.0,0.00019452,2]
[364693955,1749209442505,-440.0,0.00019452,2]
[364693957,1749209442514,-440.0,0.00019452,2]
[364693959,1749209442524,-440.0,0.00019452,2]
[364693962,1749209442533,-440.0,0.00019452,2]
[364693964,1749209442542,-5314.89,0.00019452,2]
[364693966,1749209442551,-598.89,0.00019452,2]
[364693968,1749209442561,-4156.84,0.00019452,2]
[364693970,1749209442571,-440.0,0.00019452,2]
[364693971,1749209442580,-500.0,0.00019452,2]
[364693974,1749209442589,-467.99,0.00019452,2]
[364693976,1749209442599,-440.0,0.00019452,2]
[364693978,1749209442609,-752.29,0.00019452,2]
[364693980,1749209442620,-420.0,0.00019452,2]
[364693982,1749209442629,-440.0,0.00019452,2]
[364693984,1749209442638,-308.8535468,0.00019452,2]
[364693986,1749209442647,-700.45,0.00019452,2]
[364693988,1749209442657,-1200.0,0.00019487,2]
[364693990,1749209442666,-420.0,0.00019712,2]
[364693992,1749209442676,-649.44,0.00019723,2]
[364693994,1749209442685,-500.0,0.00019725,2]
[364693996,1749209442695,-288.72491501,0.00019726,2]
[364693998,1749209442704,-440.0,0.00019726,2]